bitfinex/quotes_SOLUSD_20240918
["timestamp","ask_amount","ask_price","bid_price","bid_amount"]
[1726679464567,0.12549,128.45,128.41,7.7871]
[1726679464952,7.91069,128.45,128.41,7.7871]
[1726679465357,7.91119,128.44,128.4,30.7591]
[1726679465663,7.91119,128.44,128.4,22.9711]
[1726679465984,7.91119,128.44,128.4,30.759]
[1726679466367,7.7863,128.43,128.4,22.9711]
[1726679466860,7.91179,128.43,128.4,22.9711]
[1726679467062,8.03728,128.43,128.4,22.9711]
[1726679467362,0.12549,128.43,128.4,22.9711]
[1726679467551,7.7853,128.45,128.4,22.9711]
[1726679467941,0.25098,128.45,128.42,8.039273]
[1726679468139,8.03608,128.45,128.42,0.252573]
[1726679468662,7.7863,128.43,128.42,0.252573]
[1726679468845,31.939654,128.43,128.42,0.252573]
[1726679469047,31.939654,128.43,128.38,0.252573]
[1726679469048,7.7887,128.4,128.38,0.252573]
[1726679469368,44.153354,128.42,128.38,0.252573]
[1726679469369,7.7887,128.39,128.38,0.252573]
[1726679469773,7.7882,128.4,128.38,0.252573]
[1726679469949,7.7877,128.41,128.38,0.252573]
[1726679470148,7.91239,128.42,128.38,0.252573]
[1726679470352,7.7869,128.42,128.38,8.041473]
[1726679470571,7.7869,128.42,128.38,7.541473]
[1726679471070,7.7877,128.41,128.37,49.3596]
[1726679471291,7.7891,128.39,128.37,22.0952]
[1726679472745,27.7893,128.38,128.37,22.0952]
[1726679472947,7.79,128.37,128.34,42.2561]
[1726679473348,7.7905,128.36,128.34,22.7777]
[1726679473777,0.12549,128.37,128.34,22.7777]
[1726679474372,0.12549,128.38,128.34,22.7777]
[1726679474756,20.12549,128.38,128.34,22.7777]
[1726679474965,7.7906,128.36,128.34,22.7777]
[1726679475272,7.7911,128.35,128.34,22.7777]
[1726679476347,7.7907,128.36,128.34,22.7777]
[1726679477747,7.7911,128.35,128.34,22.7777]
[1726679478059,8.04208,128.35,128.34,22.7777]
[1726679478448,8.04208,128.35,128.32,0.3572433]
[1726679478449,7.7921,128.34,128.32,0.3572433]
[1726679478948,7.7924,128.33,128.32,0.3572433]
[1726679479173,27.91789,128.33,128.32,0.3572433]
[1726679479571,51.820264,128.33,128.32,0.3572433]
[1726679480366,7.792,128.34,128.32,0.3572433]
[1726679480581,28.1359846,128.38,128.32,0.3572433]
[1726679480582,7.7909,128.36,128.32,0.3572433]
[1726679480881,7.7909,128.36,128.33,21.6519]
[1726679481089,1.3584738,128.38,128.33,21.6519]
[1726679481305,9.1482738,128.38,128.34,1.55809147]
[1726679481584,7.79,128.37,128.33,48.9244]
[1726679482469,19.4725,128.39,128.33,21.6519]
[1726679482673,44.027864,128.38,128.33,21.6519]
[1726679483252,20.12549,128.38,128.34,1.55822414]
[1726679483881,7.7904,128.37,128.33,29.4442]
[1726679484053,7.7906,128.36,128.33,21.6519]
[1726679484881,7.7901,128.37,128.33,29.4442]
[1726679485186,28.26528522,128.38,128.33,21.6519]
[1726679485187,7.7908,128.36,128.33,21.6519]
[1726679486087,7.7908,128.36,128.33,23.21006567]
[1726679486384,7.7908,128.36,128.33,21.6519]
[1726679487190,7.7902,128.37,128.33,29.4442]
[1726679487493,7.7902,128.37,128.34,1.55806475]
[1726679488587,8.13979522,128.38,128.34,21.03726475]
[1726679488782,8.13979522,128.38,128.33,21.6519]
[1726679488979,7.7877,128.41,128.37,7.7895]
[1726679489153,7.7877,128.41,128.38,6.6622]
[1726679489557,25.9353275,128.45,128.39,16.0869]
[1726679489770,7.7865,128.43,128.39,23.875]
[1726679491071,7.787,128.42,128.39,16.0869]
[1726679492483,7.7863,128.43,128.39,23.8754]
[1726679492678,7.787,128.42,128.39,16.0869]
[1726679493581,7.7864,128.43,128.4,1.55729849]
[1726679493762,7.7877,128.41,128.39,16.0869]
[1726679493964,7.7881,128.4,128.39,16.0869]
[1726679494964,7.7887,128.39,128.38,6.6622]
[1726679495160,27.7899,128.37,128.36,15.6609]
[1726679495388,7.7911,128.36,128.34,6.586]
[1726679495588,7.7911,128.35,128.34,6.586]
[1726679498801,7.7901,128.37,128.34,8.14410064]
[1726679499093,20.0,128.38,128.34,15.93550064]
[1726679499291,20.0,128.38,128.34,14.3774]
[1726679499473,27.7897,128.38,128.34,14.3774]
[1726679500698,7.79,128.37,128.34,6.586]
[1726679501908,7.7908,128.36,128.34,6.586]
[1726679502195,7.7902,128.37,128.35,1.55791942]
[1726679502394,7.7902,128.37,128.36,1.55785693]
[1726679502691,20.0,128.39,128.36,1.55785693]
[1726679503381,7.7898,128.38,128.35,1.55780157]
[1726679503576,7.7898,128.38,128.36,1.55781439]
[1726679503771,7.7898,128.38,128.32,23.776884]
[1726679504105,27.7889,128.39,128.33,1.55774332]
[1726679504477,7.7894,128.38,128.33,1.55774332]
[1726679505202,7.7894,128.38,128.34,27.2706]
[1726679505497,7.79,128.37,128.34,27.2706]
[1726679505691,39.4722,128.39,128.31,19.4829]
[1726679505893,7.7906,128.36,128.32,7.7925]
[1726679506576,7.7906,128.36,128.33,22.2576]
[1726679507390,7.7901,128.37,128.33,30.0496]
[1726679508583,7.7901,128.37,128.34,7.7917]
[1726679508786,20.0,128.39,128.35,1.55774592]
[1726679508970,20.0,128.39,128.34,19.4791]
[1726679508971,20.0,128.39,128.36,1.55763282]
[1726679509881,27.7892,128.39,128.36,1.55763282]
[1726679510081,7.7895,128.38,128.34,27.2707]
[1726679510484,20.0,128.41,128.34,27.2707]
[1726679510485,19.4688,128.42,128.35,23.902374]
[1726679510796,7.7887,128.39,128.35,31.693274]
[1726679511202,19.4707,128.4,128.33,22.2576]
[1726679511681,7.7915,128.35,128.33,22.2576]
[1726679513270,7.7907,128.36,128.33,22.2576]
[1726679517209,7.7907,128.36,128.33,30.0499]
[1726679517398,7.7901,128.37,128.33,30.0499]
[1726679517703,7.7901,128.37,128.34,1.55779241]
[1726679517909,19.4679,128.42,128.34,1.55779241]
[1726679518089,7.7892,128.39,128.35,7.7911]
[1726679518283,7.7892,128.39,128.36,1.55754259]
[1726679519703,7.7896,128.38,128.34,7.7916]
[1726679520512,7.7895,128.38,128.34,7.7916]
[1726679520807,7.7901,128.37,128.33,49.5307]
[1726679521601,7.7897,128.38,128.34,9.34936817]
[1726679522194,7.79,128.37,128.33,49.5305]
[1726679523811,7.79,128.37,128.34,7.7916]
[1726679523987,7.7896,128.38,128.34,7.7916]
[1726679524191,20.0,128.41,128.35,19.4778]
[1726679524606,20.0,128.42,128.35,19.4778]
[1726679524888,20.0,128.42,128.33,22.2576]
[1726679524889,7.7895,128.38,128.34,7.7913]
[1726679525089,20.0,128.4,128.33,41.7385]
[1726679525319,7.7903,128.37,128.33,49.5305]
[1726679526416,7.7895,128.38,128.34,7.7917]
[1726679526987,7.79,128.37,128.34,7.7917]
[1726679527418,7.7895,128.38,128.34,7.7917]
[1726679529219,7.79,128.37,128.33,49.5307]
[1726679529706,7.7906,128.36,128.33,41.7385]
[1726679530324,7.7912,128.35,128.33,22.2576]
[1726679530694,7.7918,128.34,128.33,22.2576]
[1726679530901,7.7913,128.35,128.33,22.2576]
[1726679533198,7.7903,128.37,128.33,30.0498]
[1726679534625,19.4722,128.39,128.33,22.2576]
[1726679534799,20.0,128.38,128.33,22.2576]
[1726679535600,7.7901,128.37,128.34,1.55787554]
[1726679536004,7.7896,128.38,128.34,9.34957554]
[1726679536714,0.0672426,128.4,128.34,9.34957554]
[1726679536715,7.7889,128.39,128.35,7.7911]
[1726679536920,7.7889,128.39,128.36,1.55759492]
[1726679537498,0.0672426,128.4,128.38,14.1172]
[1726679537698,0.0672426,128.4,128.39,1.55723323]
[1726679538293,0.0672426,128.4,128.38,6.3281]
[1726679538507,7.8554426,128.4,128.38,6.3281]
[1726679539305,0.0672426,128.4,128.38,6.3281]
[1726679541211,0.0672426,128.4,128.37,42.3564]
[1726679541212,0.0672426,128.4,128.37,15.0924]
[1726679541416,7.7901,128.37,128.34,21.9909]
[1726679542417,7.7906,128.36,128.34,21.9909]
[1726679542614,20.0672426,128.4,128.34,21.9909]
[1726679542928,19.4726,128.39,128.34,21.9909]
[1726679543128,20.0,128.38,128.34,21.9909]
[1726679544312,7.7907,128.36,128.34,21.9909]
[1726679545512,7.79,128.37,128.34,21.9909]
[1726679545832,0.0672426,128.4,128.35,1.55782405]
[1726679546050,7.8554426,128.4,128.36,1.55743282]
[1726679546708,0.0672426,128.4,128.36,9.34793282]
[1726679546916,0.0672426,128.4,128.36,23.776884]
[1726679547306,0.0672426,128.4,128.34,22.11639]
[1726679547508,7.7889,128.39,128.34,22.11639]
[1726679547815,0.0672426,128.4,128.35,7.7911]
[1726679547816,7.8555426,128.4,128.35,7.7911]
[1726679549035,7.8555426,128.4,128.36,9.34799538]
[1726679549233,0.0672426,128.4,128.37,7.7898]
[1726679549538,0.0672426,128.4,128.39,29.8697]
[1726679549721,0.0672426,128.4,128.39,29.99519]
[1726679549916,0.0672426,128.4,128.39,53.897564]
[1726679550738,0.2794779,128.44,128.43,7.7863]
[1726679550907,0.2794779,128.44,128.43,9.34290623]
[1726679551636,0.2794779,128.44,128.43,33.24528023]
[1726679551820,0.2794779,128.44,128.43,53.495474]
[1726679556070,0.2794779,128.44,128.43,53.369984]
[1726679556241,0.2794779,128.44,128.43,45.583684]
[1726679557353,0.2794779,128.44,128.43,21.8068]
[1726679558727,0.2794779,128.44,128.41,27.255]
[1726679559064,0.2794779,128.44,128.39,22.4199]
[1726679559441,7.7867,128.43,128.39,30.2085]
[1726679559758,0.2794779,128.44,128.41,7.787]
[1726679560333,0.2794779,128.44,128.42,1.55681158]
[1726679560540,0.2794779,128.44,128.43,1.55672556]
[1726679560967,0.2794779,128.44,128.41,19.4677]
[1726679562561,0.2794779,128.44,128.41,27.255]
[1726679563458,0.2794779,128.44,128.41,19.4677]
[1726679563959,0.2794779,128.44,128.43,7.7863]
[1726679568936,0.2794779,128.44,128.42,7.7867]
[1726679569666,0.2794779,128.44,128.42,31.563384]
[1726679570358,0.2794779,128.44,128.43,7.7863]
[1726679572035,0.2794779,128.44,128.43,31.563184]
[1726679574470,0.2794779,128.44,128.43,31.688674]
[1726679576753,0.2794779,128.44,128.42,23.776884]
[1726679578052,0.2794779,128.44,128.42,31.563384]
[1726679580976,0.2794779,128.44,128.42,7.7865]
[1726679581473,0.2794779,128.44,128.43,9.34308652]
[1726679581657,0.2794779,128.44,128.43,33.11997052]
[1726679582444,0.2794779,128.44,128.43,31.563184]
[1726679582770,0.2794779,128.44,128.41,19.59319]
[1726679583464,0.2794779,128.44,128.41,27.38019]
[1726679583644,8.0651779,128.44,128.4,7.7879]
[1726679583843,0.2794779,128.44,128.38,19.4721]
[1726679584050,0.2794779,128.44,128.35,41.1347]
[1726679584051,15.3512,128.43,128.35,41.1347]
[1726679584245,20.0,128.42,128.35,41.1347]
[1726679584666,7.7885,128.4,128.35,41.1347]
[1726679585350,20.0,128.42,128.36,7.79]
[1726679585351,7.7876,128.41,128.36,7.79]
[1726679586665,7.7876,128.41,128.37,7.7899]
[1726679590692,7.7886,128.4,128.36,23.776884]
[1726679591074,20.0,128.42,128.35,41.1347]
[1726679591075,7.7888,128.39,128.35,19.4766]
[1726679591669,7.7888,128.39,128.35,27.2672]
[1726679593796,7.7883,128.4,128.35,27.2672]
[1726679594095,20.0,128.39,128.35,27.2672]
[1726679595787,7.7888,128.39,128.35,27.2672]
[1726679596110,7.7916,128.35,128.32,0.0530267]
[1726679596394,20.0,128.37,128.32,7.8459267]
[1726679596694,27.7901,128.37,128.33,7.7922]
[1726679596872,20.0,128.37,128.33,7.7922]
[1726679597279,27.79,128.37,128.32,7.8458267]
[1726679597484,20.0,128.37,128.32,0.0530267]
[1726679597683,7.791,128.36,128.32,0.0530267]
[1726679598389,7.791,128.36,128.32,7.8458267]
[1726679599286,20.0,128.37,128.33,7.7923]
[1726679599287,27.7899,128.37,128.33,7.7923]
[1726679599892,27.7899,128.37,128.34,9.34975739]
[1726679599893,20.0,128.37,128.34,9.34975739]
[1726679600185,27.7883,128.4,128.35,9.34902356]
[1726679600505,7.7892,128.39,128.34,7.7913]
[1726679600707,20.0,128.38,128.34,7.7913]
[1726679602602,7.7896,128.38,128.33,27.2725]
[1726679602788,7.7901,128.37,128.33,27.2725]
[1726679602988,7.7901,128.37,128.33,19.4802]
[1726679604313,20.0,128.37,128.33,27.2723]
[1726679604510,8.10920779,128.4,128.37,7.7898]
[1726679604702,22.4890477,128.42,128.35,19.4773]
[1726679604703,0.1947477,128.42,128.38,9.34640614]
[1726679604892,0.1947477,128.42,128.39,7.7887]
[1726679605094,0.1947477,128.42,128.4,1.55739574]
[1726679605393,0.1947477,128.42,128.4,9.34549574]
[1726679606094,0.1947477,128.42,128.41,1.55724835]
[1726679607120,0.1947477,128.42,128.41,9.34475938]
[1726679607300,0.1947477,128.42,128.41,7.7875]
[1726679608211,0.1947477,128.42,128.39,23.0247]
[1726679608588,0.1947477,128.42,128.37,23.776884]
[1726679609306,0.1947477,128.42,128.39,7.7886]
[1726679610016,7.9816477,128.42,128.38,27.2621]
[1726679610313,0.12549,128.41,128.35,27.2685]
[1726679610618,7.7891,128.39,128.35,19.4776]
[1726679611305,7.7912,128.35,128.32,0.0530267]
[1726679611505,20.25098,128.39,128.35,7.791]
[1726679611813,20.25098,128.39,128.36,9.34840129]
[1726679611814,20.0,128.39,128.36,9.34840129]
[1726679612017,20.0,128.39,128.36,19.4754]
[1726679612237,16.1331477,128.42,128.37,1.55766012]
[1726679612387,27.7875,128.41,128.36,27.2654]
[1726679614215,7.7889,128.39,128.33,24.027864]
[1726679614405,7.7889,128.39,128.33,31.694674]
[1726679614607,27.788,128.41,128.34,7.7916]
[1726679615412,7.7882,128.4,128.34,7.7916]
[1726679615820,7.789,128.39,128.33,7.7922]
[1726679616191,20.0,128.38,128.33,7.7922]
[1726679616894,20.0,128.38,128.32,19.5343267]
[1726679616895,0.25098,128.4,128.32,19.5343267]
[1726679617095,20.0,128.41,128.35,7.7906]
[1726679618397,27.7876,128.41,128.35,7.7906]
[1726679618708,20.0,128.38,128.33,23.902374]
[1726679619823,20.0,128.38,128.33,7.7923]
[1726679620116,7.7899,128.37,128.32,27.3267267]
[1726679621298,7.7909,128.36,128.32,19.5343267]
[1726679621510,20.0,128.35,128.32,19.5343267]
[1726679621820,20.0,128.35,128.32,0.0530267]
[1726679621821,27.7912,128.35,128.32,0.0530267]
[1726679621990,20.0,128.33,128.32,0.0530267]
[1726679622196,27.7924,128.33,128.32,0.0530267]
[1726679622419,20.0,128.33,128.32,0.0530267]
[1726679622921,15.5678,128.36,128.32,7.8460267]
[1726679623114,20.0,128.36,128.33,1.55825599]
[1726679623312,20.0,128.36,128.32,7.8460267]
[1726679624396,20.0,128.38,128.33,7.7922]
[1726679624599,20.0,128.38,128.33,19.48]
[1726679624825,20.0,128.38,128.34,7.7917]
[1726679625035,7.7892,128.39,128.34,7.7917]
[1726679626328,20.0,128.38,128.34,7.7917]
[1726679630429,20.0,128.38,128.35,7.7907]
[1726679630600,20.0,128.39,128.36,1.55781529]
[1726679631021,20.0,128.38,128.35,7.7907]
[1726679631219,20.0,128.38,128.34,7.7917]
[1726679631426,27.7894,128.38,128.33,27.2722]
[1726679632025,7.7889,128.39,128.35,7.791]
[1726679632330,20.0,128.38,128.36,1.5578235]
[1726679632829,20.0,128.39,128.37,1.55785149]
[1726679633131,20.0,128.39,128.37,9.34775149]
[1726679633512,20.0,128.4,128.37,9.34775149]
[1726679633822,20.0,128.4,128.37,7.7899]
[1726679634007,20.0,128.4,128.35,19.4775]
[1726679634332,27.7883,128.4,128.36,7.7905]
[1726679634633,27.7883,128.4,128.35,19.4775]
[1726679634634,7.7876,128.41,128.37,7.7899]
[1726679634819,7.9817477,128.42,128.38,7.7893]
[1726679635129,7.9817477,128.42,128.39,1.55746489]
[1726679635317,7.9817477,128.42,128.38,7.7893]
[1726679635721,7.9817477,128.42,128.37,27.2642]
[1726679636022,20.0,128.41,128.37,27.2642]
[1726679636532,7.7877,128.41,128.37,27.2642]
[1726679636734,7.7888,128.39,128.35,7.791]
[1726679638834,7.7904,128.37,128.31,19.4834]
[1726679639409,7.7904,128.37,128.33,7.7923]
[1726679639708,27.7906,128.36,128.32,30.6342267]
[1726679640110,7.7918,128.34,128.32,22.8416267]
[1726679640434,7.7918,128.34,128.32,0.0530267]
[1726679641132,7.7913,128.35,128.32,0.0530267]
[1726679641309,20.0,128.34,128.32,0.0530267]
[1726679642832,20.0,128.35,128.32,0.0530267]
[1726679643433,7.7919,128.34,128.32,0.0530267]
[1726679643811,20.0,128.33,128.32,0.0530267]
[1726679644343,27.7924,128.33,128.32,0.0530267]
[1726679645533,51.945754,128.33,128.32,0.0530267]
[1726679645741,51.945754,128.33,128.29,0.2477744]
[1726679645742,27.7942,128.3,128.29,0.2477744]
[1726679646535,28.17067,128.3,128.29,0.2477744]
[1726679647640,28.17067,128.3,128.25,0.2477744]
[1726679647641,28.04758,128.26,128.25,0.2477744]
[1726679647942,28.17307,128.26,128.25,0.2477744]
[1726679648144,28.17307,128.26,128.21,0.2477744]
[1726679648145,7.7987,128.23,128.21,0.2477744]
[1726679648312,20.0,128.22,128.21,0.2477744]
[1726679648512,27.799,128.22,128.21,0.2477744]
[1726679649447,27.799,128.22,128.17,7.53420293]
[1726679649448,28.17797,128.18,128.17,7.53420293]
[1726679649816,28.17797,128.18,128.11,7.8055]
[1726679649817,7.8026,128.17,128.11,7.8055]
[1726679650021,20.37647,128.16,128.11,0.2119013]
[1726679650445,0.37647,128.16,128.11,0.2119013]
[1726679650739,0.12549,128.16,128.11,0.2119013]
[1726679650945,20.0,128.17,128.12,7.8051]
[1726679651348,20.0,128.17,128.11,0.2119013]
[1726679651349,0.37647,128.16,128.11,0.2119013]
[1726679651532,20.0,128.17,128.11,0.2119013]
[1726679652041,20.0,128.2,128.12,1.56088492]
[1726679652219,16.5406,128.22,128.11,0.2119013]
[1726679652550,6.4451,128.24,128.15,19.5068]
[1726679653024,6.4451,128.24,128.16,7.8027]
[1726679654251,8.10009639,128.23,128.16,7.8027]
[1726679654416,8.10009639,128.23,128.15,19.5068]
[1726679654417,44.153354,128.22,128.15,19.5068]
[1726679654620,44.153354,128.22,128.15,27.31]
[1726679655344,45.51081624,128.22,128.15,27.31]
[1726679655651,45.51081624,128.22,128.15,27.3101]
[1726679655831,45.51081624,128.22,128.16,7.8026]
[1726679656037,45.51081624,128.22,128.15,27.31]
[1726679656235,44.153354,128.22,128.15,27.31]
[1726679656749,44.153354,128.22,128.15,7.8029]
[1726679656930,44.153354,128.22,128.14,27.5246013]
[1726679657932,44.153354,128.22,128.15,7.8031]
[1726679658430,44.153354,128.22,128.14,27.5247013]
[1726679660328,8.10009639,128.23,128.16,19.5057]
[1726679660549,8.10009639,128.23,128.16,27.3083]
[1726679661732,20.12549,128.21,128.16,27.3083]
[1726679662853,20.12549,128.21,128.14,0.2119013]
[1726679662854,20.0,128.22,128.19,7.8004]
[1726679663534,8.10009639,128.23,128.19,7.8004]
[1726679663734,8.10009639,128.23,128.2,7.8003]
[1726679664143,8.10009639,128.23,128.21,7.7996]
[1726679664647,0.2883969,128.27,128.21,7.7996]
[1726679664856,20.2883969,128.27,128.21,7.7996]
[1726679665059,28.3938911,128.27,128.21,7.7996]
[1726679665257,28.3938911,128.27,128.18,7.8014]
[1726679665456,28.3938911,128.27,128.19,7.8008]
[1726679666455,24.153354,128.26,128.19,7.8008]
[1726679666866,24.153354,128.24,128.17,27.3061]
[1726679667057,20.0,128.23,128.17,27.3061]
[1726679667964,20.0,128.23,128.18,7.8012]
[1726679668150,0.37647,128.24,128.19,7.8007]
[1726679668359,0.12549,128.23,128.19,7.8007]
[1726679668552,20.0,128.24,128.19,7.8007]
[1726679669061,20.0,128.24,128.2,7.8002]
[1726679669366,20.0,128.24,128.19,19.5015]
[1726679669542,20.0,128.24,128.2,7.8001]
[1726679669738,20.0,128.24,128.19,27.3023]
[1726679669951,0.12549,128.23,128.19,19.5015]
[1726679670361,20.0,128.22,128.16,27.3084]
[1726679670549,20.0,128.22,128.18,7.8014]
[1726679671988,0.25098,128.21,128.16,27.308]
[1726679672261,20.0,128.2,128.14,0.2119013]
[1726679672437,20.0,128.2,128.17,7.8021]
[1726679672640,0.12549,128.23,128.18,7.8011]
[1726679672862,20.25098,128.23,128.18,7.8011]
[1726679674566,16.3086,128.26,128.2,7.8002]
[1726679674776,16.3086,128.26,128.19,7.8008]
[1726679675059,16.3086,128.26,128.18,27.3046]
[1726679675365,8.10588194,128.25,128.18,19.5034]
[1726679675563,23.776884,128.24,128.18,19.5034]
[1726679675865,20.37647,128.23,128.18,19.5034]
[1726679676562,20.37647,128.23,128.17,7.8019]
[1726679676769,20.0,128.21,128.16,7.8025]
[1726679677342,20.37647,128.21,128.16,7.8025]
[1726679677647,20.0,128.21,128.17,7.8016]
[1726679677848,24.153354,128.24,128.17,19.505]
[1726679678047,20.0,128.23,128.19,7.8005]
[1726679678456,8.10588194,128.25,128.21,7.7996]
[1726679678670,8.10588194,128.25,128.19,19.5015]
[1726679678862,8.10588194,128.25,128.2,7.8]
[1726679679756,20.0,128.24,128.2,7.8]
[1726679679968,20.0,128.24,128.19,27.3023]
[1726679680266,24.027864,128.23,128.18,7.8013]
[1726679680457,20.0,128.22,128.18,7.8013]
[1726679681160,20.0,128.24,128.2,7.7997]
[1726679681476,20.0,128.24,128.2,27.3004]
[1726679682164,20.0,128.24,128.21,7.7996]
[1726679683277,20.0,128.24,128.2,27.3008]
[1726679683977,20.0,128.24,128.2,19.5007]
[1726679684363,20.0,128.24,128.21,7.7996]
[1726679684556,20.0,128.24,128.2,27.3009]
[1726679691278,20.0,128.24,128.22,7.7989]
[1726679691579,20.0,128.26,128.22,7.7989]
[1726679692668,20.0,128.26,128.21,7.7995]
[1726679693562,20.0,128.24,128.21,7.7995]
[1726679693976,20.0,128.24,128.18,15.7801]
[1726679694155,7.7994,128.22,128.18,23.5814]
[1726679694755,7.7987,128.23,128.19,7.8007]
[1726679695171,20.12549,128.25,128.2,7.8002]
[1726679695172,7.7981,128.24,128.2,7.8002]
[1726679695367,20.0,128.23,128.2,7.8002]
[1726679695767,7.7984,128.23,128.19,27.3029]
[1726679696186,7.799,128.22,128.19,27.3029]
[1726679696486,7.799,128.22,128.19,19.5022]
[1726679698191,7.799,128.22,128.19,27.303]
[1726679698779,0.12549,128.24,128.19,27.303]
[1726679698780,7.7987,128.23,128.19,27.303]
[1726679700395,7.7991,128.22,128.19,19.5022]
[1726679701676,0.12549,128.24,128.18,23.5813]
[1726679701999,0.12549,128.24,128.17,25.7608]
[1726679702000,7.7998,128.21,128.17,33.5627]
[1726679702192,7.8007,128.2,128.16,7.8023]
[1726679702485,20.12549,128.25,128.15,7.8032]
[1726679702486,7.8013,128.19,128.15,7.8032]
[1726679702884,20.12549,128.22,128.16,19.5067]
[1726679702885,20.0,128.22,128.16,19.5067]
[1726679703073,27.7994,128.22,128.18,7.8011]
[1726679703277,20.0,128.22,128.19,7.8007]
[1726679703484,8.10964645,128.25,128.2,7.8002]
[1726679703485,7.798,128.24,128.2,7.8002]
[1726679703781,20.0,128.23,128.2,27.3008]
[1726679704488,7.798,128.24,128.2,27.3008]
[1726679704489,20.0,128.24,128.21,7.7996]
[1726679704695,8.10964645,128.25,128.23,7.7984]
[1726679704998,43.06656157,128.27,128.25,7.797]
[1726679704999,25.3237244,128.27,128.25,7.797]
[1726679705164,0.2883969,128.27,128.26,7.7966]
[1726679705590,0.2883969,128.27,128.26,9.35555503]
[1726679705772,0.2883969,128.27,128.26,7.7966]
[1726679706381,0.2883969,128.27,128.26,9.35556924]
[1726679706586,0.2883969,128.27,128.25,27.2893]
[1726679706789,0.2883969,128.27,128.25,19.4924]
[1726679707091,0.2883969,128.27,128.26,7.7966]
[1726679707872,0.2883969,128.27,128.24,16.0134]
[1726679708074,0.2883969,128.27,128.23,6.0917]
[1726679708400,0.2883969,128.27,128.23,13.8901]
[1726679708590,8.0844969,128.27,128.23,13.8901]
[1726679708770,0.2883969,128.27,128.23,13.8901]
[1726679708976,0.2883969,128.27,128.24,7.7978]
[1726679709180,0.2883969,128.27,128.25,7.797]
[1726679709603,0.2883969,128.27,128.23,13.89]
[1726679709785,0.2883969,128.27,128.24,7.7978]
[1726679710105,0.2883969,128.27,128.25,7.797]
[1726679710604,0.2883969,128.27,128.26,7.7966]
[1726679710772,0.2883969,128.27,128.24,19.4938]
[1726679711100,8.0843969,128.27,128.21,35.1597]
[1726679711277,8.0843969,128.27,128.22,7.7989]
[1726679711476,0.2883969,128.27,128.21,42.9592]
[1726679712187,20.0,128.28,128.23,7.7983]
[1726679712397,28.148802,128.28,128.23,7.7983]
[1726679712580,0.352902,128.28,128.24,7.7978]
[1726679712775,20.352902,128.28,128.24,7.7978]
[1726679713104,20.352902,128.28,128.25,9.35633201]
[1726679713401,20.352902,128.28,128.25,7.797]
[1726679714416,0.352902,128.28,128.27,7.796]
[1726679714703,0.352902,128.28,128.25,19.492]
[1726679715010,0.352902,128.28,128.26,7.7962]
[1726679715183,0.352902,128.28,128.25,27.2891]
[1726679715371,0.352902,128.28,128.25,19.492]
[1726679716195,0.352902,128.28,128.27,7.796]
[1726679716388,0.352902,128.28,128.25,19.492]
[1726679716592,0.352902,128.28,128.26,7.7965]
[1726679716806,0.352902,128.28,128.27,7.796]
[1726679721600,0.352902,128.28,128.26,7.7965]
[1726679722005,0.352902,128.28,128.25,27.289]
[1726679722202,0.352902,128.28,128.26,7.7966]
[1726679723230,0.352902,128.28,128.27,9.35510825]
[1726679724111,0.352902,128.28,128.27,7.796]
[1726679724310,0.352902,128.28,128.26,7.7966]
[1726679724893,0.352902,128.28,128.25,27.289]
[1726679725410,0.352902,128.28,128.26,7.7966]
[1726679726019,0.352902,128.28,128.27,7.796]
[1726679727510,0.352902,128.28,128.27,53.140384]
[1726679727712,0.352902,128.28,128.27,53.391364]
[1726679728306,0.352902,128.28,128.27,29.3635]
[1726679729187,0.352902,128.28,128.27,7.796]